bitfinex-derivatives/quotes_ETHF0:USTF0_20241020
["timestamp","ask_amount","ask_price","bid_price","bid_amount"]
[1729405481429,0.37797,2645.8,2645.6,2.0516]
[1729405481643,2.35556844,2645.8,2645.6,2.0516]
[1729405481823,0.18911384,2645.7,2645.6,2.0516]
[1729405482223,2.16671228,2645.7,2645.6,2.0516]
[1729405483237,1.97759844,2645.7,2645.6,2.0516]
[1729405483533,0.56710496,2645.7,2645.6,1.2386]
[1729405483732,2.85291475,2645.7,2645.6,0.8481]
[1729405484031,4.7588514,2645.7,2645.6,0.8481]
[1729405484234,2.28392665,2645.7,2645.6,0.8481]
[1729405484630,6.06392665,2645.7,2645.5,3.2078]
[1729405484831,4.38088687,2645.6,2645.5,3.2078]
[1729405485231,4.38107015,2645.6,2645.5,3.2078]
[1729405488033,4.38201955,2645.6,2645.5,3.2078]
[1729405488231,4.38201955,2645.6,2645.4,1.61202]
[1729405488432,4.38201955,2645.6,2645.5,3.2078]
[1729405490128,4.76001955,2645.6,2645.5,3.2078]
[1729405491045,4.76001955,2645.6,2645.4,0.421]
[1729405491046,0.37801,2645.5,2645.4,0.421]
[1729405491230,2.8537062,2645.5,2645.4,0.421]
[1729405491543,0.37803,2645.4,2645.3,0.846]
[1729405491738,8.54114299,2645.4,2645.3,0.4232]
[1729405492334,0.37805,2645.3,2645.0,0.813]
[1729405492527,1.98054248,2645.1,2645.0,1.2282]
[1729405492725,3.04290036,2645.2,2645.0,0.4152]
[1729405492929,0.18916226,2645.1,2645.0,0.4152]
[1729405493134,2.4756781,2645.1,2645.0,0.4152]
[1729405493442,2.8537381,2645.2,2645.0,0.4152]
[1729405493740,4.3827766,2645.1,2645.0,0.4152]
[1729405494440,0.1891662,2645.1,2645.0,0.4152]
[1729405494636,3.0429043,2645.2,2645.0,0.4152]
[1729405494832,0.1891662,2645.1,2645.0,0.4152]
[1729405496441,0.5672362,2645.1,2645.0,0.4152]
[1729405497237,2.3570946,2645.1,2645.0,0.4152]
[1729405497437,2.54626473,2645.1,2645.0,0.4152]
[1729405497640,2.16819473,2645.1,2645.0,0.4152]
[1729405498028,0.18917013,2645.1,2645.0,0.4152]
[1729405498244,1.97885618,2645.1,2645.0,0.4152]
[1729405498540,2.16802631,2645.1,2645.0,0.4152]
[1729405499437,1.67310694,2645.1,2645.0,0.79329]
[1729405499640,1.48393681,2645.1,2645.0,0.79329]
[1729405500635,1.97885618,2645.3,2645.2,0.37806]
[1729405500845,2.16800499,2645.3,2645.1,0.37807]
[1729405501142,0.18914447,2645.2,2645.1,0.37807]
[1729405501341,1.97885618,2645.3,2645.1,0.37807]
[1729405501733,2.16800065,2645.3,2645.1,0.37807]
[1729405501934,0.18914447,2645.2,2645.1,0.37807]
[1729405502135,1.97885618,2645.3,2645.1,0.37807]
[1729405502841,2.16800065,2645.3,2645.1,0.37807]
[1729405503033,0.18914447,2645.2,2645.1,0.37807]
[1729405503234,1.97885618,2645.3,2645.1,0.37807]
[1729405509046,1.97885618,2645.3,2645.2,0.813]
[1729405510544,1.97885618,2645.3,2645.2,1.19106]
[1729405510740,2.8536981,2645.5,2645.2,1.19106]
[1729405510741,1.97885618,2645.4,2645.2,1.19106]
[1729405510940,1.97885618,2645.4,2645.3,0.79334]
[1729405511142,1.97885618,2645.4,2645.3,1.57424]
[1729405518853,2.4756781,2645.6,2645.4,0.37803]
[1729405518854,1.97938812,2645.5,2645.4,0.37803]
[1729405519458,1.97938812,2645.6,2645.5,0.37801]
[1729405526046,1.97938812,2645.6,2645.4,0.37802]
[1729405527047,1.97938812,2645.6,2645.5,0.37801]
[1729405527256,4.14716962,2645.7,2645.3,4.0104]
[1729405527455,1.98082213,2645.6,2645.3,4.0104]
[1729405527653,1.98082213,2645.6,2645.5,0.37801]
[1729405527840,1.98082213,2645.6,2645.3,4.0104]
[1729405528045,1.98082213,2645.6,2645.4,0.37802]
[1729405528448,1.98082213,2645.5,2645.3,4.0104]
[1729405528654,1.98082213,2645.6,2645.3,4.0104]
[1729405528849,1.98082213,2645.6,2645.4,0.37802]
[1729405529553,1.98082213,2645.6,2645.3,4.0104]
[1729405529749,1.98082213,2645.6,2645.5,0.37801]
[1729405530157,1.98082213,2645.6,2645.3,4.0104]
[1729405530158,1.98082213,2645.6,2645.4,0.37802]
[1729405532253,1.98082213,2645.6,2645.3,4.0104]
[1729405532454,1.98082213,2645.6,2645.5,0.37801]
[1729405535260,1.98082213,2645.6,2645.4,3.58582]
[1729405535454,1.98082213,2645.6,2645.5,0.3897]
[1729405535965,1.98082213,2645.6,2645.5,0.76771]
[1729405537259,1.98082213,2645.6,2645.5,0.3897]
[1729405539260,1.98082213,2645.6,2645.5,0.79187474]
[1729405539455,1.98082213,2645.6,2645.5,0.3897]
[1729405545167,1.98082213,2645.6,2645.5,1.2017]
[1729405547367,2.8868781,2645.7,2645.5,1.2017]
[1729405547672,1.98183172,2645.6,2645.5,1.2017]
[1729405547969,2.8868781,2645.7,2645.5,1.2017]
[1729405548171,1.98190534,2645.6,2645.5,1.2017]
[1729405548569,2.8868781,2645.7,2645.5,1.2017]
[1729405548971,1.98190763,2645.6,2645.5,1.2017]
[1729405549167,2.8868781,2645.7,2645.5,1.2017]
[1729405550668,1.98206725,2645.6,2645.5,1.2017]
[1729405550868,2.8868781,2645.7,2645.5,1.2017]
[1729405553675,1.67318822,2645.6,2645.5,1.2017]
[1729405554376,2.8868781,2645.7,2645.5,1.2017]
[1729405555289,1.67346493,2645.6,2645.5,1.2017]
[1729405555490,4.14914303,2645.6,2645.5,1.2017]
[1729405557189,1.67346493,2645.6,2645.5,1.2017]
[1729405558490,1.67394066,2645.6,2645.5,1.2017]
[1729405561689,1.67453608,2645.6,2645.5,1.2017]
[1729405566598,1.67574094,2645.6,2645.5,1.2017]
[1729405567900,1.67574094,2645.6,2645.5,1.57971]
[1729405569387,1.67574094,2645.6,2645.5,1.2017]
[1729405569894,1.67574094,2645.6,2645.5,1.57971]
[1729405570092,1.67574094,2645.6,2645.5,1.2017]
[1729405571198,1.67574094,2645.6,2645.5,1.57971]
[1729405571498,1.67570542,2645.6,2645.5,1.2017]
[1729405581005,1.67571616,2645.6,2645.5,1.2017]
[1729405581602,1.67571616,2645.7,2645.5,1.2017]
[1729405581802,1.67571616,2645.6,2645.5,1.2017]
[1729405582210,1.67571616,2645.7,2645.5,1.2017]
[1729405582395,1.67571616,2645.6,2645.5,1.2017]
[1729405582808,1.67571616,2645.7,2645.5,1.2017]
[1729405583006,1.67571616,2645.6,2645.5,1.2017]
[1729405583610,1.67571616,2645.7,2645.5,1.2017]
[1729405583911,1.67571616,2645.6,2645.5,1.57971]
[1729405584411,1.67571616,2645.6,2645.5,1.2017]
[1729405590409,3.76986958,2645.8,2645.5,1.2017]
[1729405590607,1.67571882,2645.7,2645.5,1.2017]
[1729405590804,1.67571882,2645.6,2645.5,1.2017]
[1729405595317,1.67569092,2645.6,2645.5,1.2017]
[1729405600213,1.67568296,2645.6,2645.5,1.2017]
[1729405604919,1.6756945,2645.7,2645.5,1.2017]
[1729405605114,1.6756945,2645.6,2645.5,1.2017]
[1729405607514,1.6756945,2645.6,2645.5,1.57971]
[1729405607912,1.98523788,2645.6,2645.5,4.13676063]
[1729405608112,1.34053788,2645.7,2645.6,0.378]
[1729405608318,1.34053788,2645.7,2645.6,2.93394842]
[1729405608319,1.48817478,2645.7,2645.6,2.93394842]
[1729405608509,1.48817478,2645.7,2645.6,6.71394842]
[1729405609222,3.78118958,2646.2,2645.6,6.33594842]
[1729405609525,0.8046,2646.2,2645.8,0.37796]
[1729405609909,0.8046,2646.2,2645.9,0.4159]
[1729405610110,0.8046,2646.2,2646.0,0.812]
[1729405612722,0.8046,2646.2,2646.0,1.18994]
[1729405615124,1.18252,2646.2,2645.9,1.60586]
[1729405623527,0.8046,2646.2,2646.0,0.37794]
[1729405623834,1.18251,2646.2,2645.9,1.60585]
[1729405626035,0.8046,2646.2,2646.0,0.37793]
[1729405626538,0.8046,2646.2,2645.9,1.2279]
[1729405626721,1.18252,2646.2,2645.9,1.60585]
[1729405626931,0.8046,2646.2,2646.0,0.37794]
[1729405627430,0.8046,2646.2,2646.0,0.37793]
[1729405627729,0.8046,2646.2,2645.9,1.2279]
[1729405627936,2.4769181,2646.0,2645.9,1.60585]
[1729405631438,2.4769181,2646.1,2645.9,1.60585]
[1729405633545,2.4769181,2646.1,2646.0,0.37794]
[1729405633944,2.4769181,2646.1,2645.9,1.2279]
[1729405634146,2.4769181,2646.1,2645.9,1.60585]
[1729405635641,2.4769181,2646.1,2645.9,1.2279]
[1729405635846,2.4769181,2646.1,2645.9,1.60585]
[1729405636149,2.4769181,2646.1,2645.9,1.2279]
[1729405636350,2.4769181,2646.1,2645.9,1.60585]
[1729405639638,2.4769181,2646.1,2646.0,0.37794]
[1729405639842,2.4769181,2646.1,2645.9,1.60585]
[1729405641045,2.4769181,2646.1,2645.9,1.2279]
[1729405641252,2.4769181,2646.1,2646.0,0.37794]
[1729405641544,2.4769181,2646.1,2645.9,1.2279]
[1729405641749,2.4769181,2646.1,2645.9,1.60585]
[1729405643452,2.4769181,2646.0,2645.9,1.60585]
[1729405643653,2.4769181,2646.1,2645.9,1.60585]
[1729405644245,2.4769181,2646.1,2646.0,0.37794]
[1729405644550,2.47781659,2646.1,2646.0,0.37794]
[1729405644857,2.47781659,2646.1,2646.0,0.811]
[1729405645353,0.8046,2646.2,2646.0,0.811]
[1729405646452,0.8046,2646.2,2646.0,1.18894]
[1729405648364,3.78118958,2646.2,2646.0,1.18894]
[1729405648745,4.15910958,2646.2,2646.0,1.18894]
[1729405650555,3.78118958,2646.2,2646.0,1.18894]
[1729405651952,4.15910958,2646.2,2646.0,1.18894]
[1729405653458,2.97658958,2646.1,2646.0,1.18894]
[1729405653662,3.78118958,2646.2,2646.0,1.18894]
[1729405654162,3.78118958,2646.2,2646.1,0.37793]
[1729405654163,3.37068958,2646.2,2646.1,0.37793]
[1729405654554,0.3941,2646.2,2646.1,0.37793]
[1729405655255,3.37068958,2646.2,2646.1,0.37793]
[1729405656353,0.3941,2646.2,2646.1,0.37793]
[1729405657163,0.8088,2646.2,2646.1,0.37793]
[1729405659156,3.78538958,2646.2,2646.1,0.37793]
[1729405661456,6.31725625,2646.2,2646.1,0.37793]
[1729405661664,3.34066486,2646.2,2646.1,0.37793]
[1729405663264,6.31783318,2646.2,2646.1,0.37793]
[1729405668670,3.78596832,2646.2,2646.1,0.37793]
[1729405676873,3.78596832,2646.2,2646.0,0.4273]
[1729405677070,4.16388832,2646.2,2645.9,0.79385]
[1729405677280,0.37793,2646.1,2645.9,1.60485]
[1729405677584,0.4208,2646.0,2645.9,1.60485]
[1729405677973,0.4208,2646.0,2645.9,1.2269]
[1729405678577,0.4208,2646.0,2645.9,0.811]
[1729405683383,0.4208,2646.0,2645.7,4.00348]
[1729405683579,2.48059148,2645.8,2645.7,4.81448]
[1729405683779,0.805,2645.9,2645.7,4.81448]
[1729405684183,0.805,2645.9,2645.7,4.4365]
[1729405684782,0.805,2645.9,2645.7,3.6255]
[1729405684988,1.18296,2645.9,2645.7,4.4365]
[1729405686887,0.805,2645.9,2645.7,4.4365]
[1729405688980,0.805,2645.9,2645.7,1.2287]
[1729405689291,0.805,2645.9,2645.7,4.4365]
[1729405691792,2.47938193,2645.8,2645.7,4.81449]
[1729405697290,2.47938193,2645.8,2645.7,3.6255]
[1729405697486,0.79426,2645.9,2645.7,3.6255]
[1729405697487,1.18666,2645.9,2645.7,3.6255]
[1729405697686,0.8087,2645.9,2645.7,3.6255]
[1729405697882,1.18666,2645.9,2645.7,3.6255]
[1729405698286,0.8087,2645.9,2645.7,3.6255]
[1729405699494,0.8087,2645.9,2645.7,0.4177]
[1729405699697,0.8087,2645.9,2645.7,0.79568]
[1729405700293,0.8087,2645.9,2645.7,0.4177]
[1729405701301,0.8087,2645.9,2645.7,0.79568]
[1729405702306,0.8087,2645.9,2645.7,0.4177]
[1729405702905,0.8087,2645.9,2645.7,0.79568]
[1729405703990,3.7792,2645.8,2645.5,0.4049]
[1729405704206,2.47855369,2645.7,2645.5,0.78291]
[1729405704404,2.47855369,2645.7,2645.4,4.4144]
[1729405704405,2.47855369,2645.6,2645.4,4.79242]
[1729405704612,2.47855369,2645.5,2645.4,4.79242]
[1729405704800,0.8445,2645.6,2645.4,4.79242]
[1729405705000,2.47873775,2645.5,2645.4,4.79242]
[1729405706807,0.8445,2645.6,2645.4,4.79242]
[1729405706808,3.32323775,2645.6,2645.4,4.79242]
[1729405707007,2.90313775,2645.6,2645.4,4.79242]
[1729405709713,2.90313775,2645.6,2645.4,4.4144]
[1729405709906,2.90313775,2645.6,2645.4,3.6044]
[1729405710311,2.90313775,2645.6,2645.4,3.98242]
[1729405711805,2.90313775,2645.6,2645.4,3.6044]
[1729405712110,1.98162545,2645.5,2645.4,3.98242]
[1729405714009,2.90313775,2645.6,2645.5,0.37801]
[1729405714414,6.68313775,2645.6,2645.5,0.37801]
[1729405717308,2.90313775,2645.6,2645.5,0.37801]
[1729405722007,0.4244,2645.6,2645.5,0.37801]
[1729405723718,2.90313775,2645.6,2645.5,0.37801]
[1729405728522,2.47873775,2645.6,2645.5,0.37801]
[1729405728822,2.47873775,2645.7,2645.6,0.378]
[1729405729013,2.47873775,2645.7,2645.6,0.7946]
[1729405729212,2.47873775,2645.8,2645.7,0.37799]
[1729405729413,2.47873775,2645.8,2645.7,0.80379]
[1729405732021,0.37795,2646.0,2645.8,0.37797]
[1729405733118,5.49913105,2646.0,2645.7,0.4258]
[1729405733325,0.4176,2645.9,2645.8,0.37796]
[1729405734333,0.79556,2645.9,2645.8,0.37796]
[1729405735125,0.4176,2645.9,2645.8,0.37796]
[1729405736120,3.39476832,2645.9,2645.8,0.37796]
[1729405736322,3.77272832,2645.9,2645.8,0.37796]
[1729405738722,6.24991352,2645.9,2645.8,0.37796]
[1729405738928,3.77272832,2645.9,2645.8,0.37796]
[1729405739722,6.25002121,2645.9,2645.8,0.37796]
[1729405740936,5.87206121,2645.9,2645.8,0.37796]
[1729405741737,3.39476832,2645.9,2645.8,0.37796]
[1729405742428,5.87233873,2645.9,2645.8,0.37796]
[1729405743240,5.87247911,2645.9,2645.8,0.37796]
[1729405744235,0.4176,2645.9,2645.8,0.37796]
[1729405745435,3.39476832,2645.9,2645.8,0.37796]
[1729405745639,0.4176,2645.9,2645.8,0.37796]
[1729405746144,0.79556,2645.9,2645.8,0.37796]
[1729405746334,3.77272832,2645.9,2645.8,0.37796]
[1729405747040,0.79556,2645.9,2645.8,0.37796]
[1729405747239,3.77272832,2645.9,2645.8,0.37796]
[1729405748042,3.39476832,2645.9,2645.7,0.4258]
[1729405748242,0.37797,2645.8,2645.7,0.4258]
[1729405748436,0.80697,2645.8,2645.7,0.4258]
[1729405748834,3.40616832,2645.8,2645.6,0.37799]
[1729405749037,0.4079,2645.7,2645.6,0.37799]
[1729405750639,0.4079,2645.7,2645.5,1.2226]
[1729405753447,0.78589,2645.7,2645.5,0.8446]
[1729405758343,3.76305832,2645.7,2645.5,0.8446]
[1729405758850,0.78589,2645.7,2645.5,0.8446]
[1729405765449,0.378,2645.6,2645.5,0.8446]
[1729405765640,0.3876,2645.6,2645.5,0.4163]
[1729405779654,3.78414832,2645.8,2645.5,0.4163]
[1729405779861,3.78414832,2645.8,2645.5,0.79431]
[1729405780060,3.78414832,2645.8,2645.6,0.3901]
[1729405782660,2.97716832,2645.7,2645.6,0.3901]
[1729405782861,3.78414832,2645.8,2645.6,0.3901]
[1729405783163,2.97716832,2645.7,2645.6,0.3901]
[1729405789470,3.78414832,2645.8,2645.6,0.3901]
[1729405801069,0.378,2645.6,2645.5,0.4163]
[1729405801777,1.1954,2645.6,2645.5,0.4163]
[1729405801982,0.37801,2645.5,2645.4,0.4153]
[1729405802184,0.78021,2645.5,2645.4,0.4153]
[1729405802673,3.75737832,2645.5,2645.4,0.4153]
[1729405803085,0.78021,2645.5,2645.4,0.4153]
[1729405804582,3.75737832,2645.5,2645.4,0.4153]
[1729405804882,6.23634115,2645.5,2645.4,0.4153]
[1729405805081,3.75737832,2645.5,2645.4,0.4153]
[1729405807382,0.78021,2645.5,2645.4,0.4153]
[1729405808584,3.75737832,2645.5,2645.1,1.21586]
[1729405808890,3.75737832,2645.5,2645.2,0.407]
[1729405809081,3.37936832,2645.5,2645.2,0.407]
[1729405809280,0.37804,2645.4,2645.2,0.407]
[1729405811592,2.4796021,2645.3,2645.2,0.407]
[1729405812289,0.37806,2645.2,2644.9,2.17626694]
[1729405812588,2.85751639,2645.2,2645.0,0.4005]
[1729405812980,3.24791639,2645.2,2645.0,0.4005]
[1729405814676,2.86985639,2645.2,2645.0,0.4005]
[1729405814876,3.24791639,2645.2,2645.0,0.4005]
[1729405815392,1.98281826,2645.1,2645.0,0.4005]
[1729405815787,3.24791639,2645.2,2645.0,0.4005]
[1729405816089,1.98283853,2645.1,2645.0,0.796]
[1729405816683,1.98283853,2645.1,2645.0,4.5768]
[1729405817593,1.98283853,2645.1,2645.0,0.796]
[1729405818292,1.98245136,2645.1,2645.0,0.796]
[1729405818597,3.24791639,2645.2,2645.0,0.4005]
[1729405819284,0.37807,2645.1,2645.0,0.4005]
[1729405819488,2.47945639,2645.1,2645.0,0.4005]
[1729405819682,2.85752639,2645.1,2645.0,0.4005]
[1729405820285,2.47945639,2645.1,2645.0,0.4005]
[1729405820791,3.24792639,2645.2,2645.0,0.4005]
[1729405821387,2.85752639,2645.1,2644.8,1.18611]
[1729405821582,2.85752639,2645.1,2644.9,0.405]
[1729405821583,1.9816971,2645.0,2644.9,0.405]
[1729405823486,2.3597871,2645.0,2644.7,1.17462]
[1729405823683,1.48602577,2644.8,2644.7,1.2015]
[1729405823886,2.4046971,2644.9,2644.7,1.2015]
[1729405824280,2.4046971,2644.9,2644.4,1.20633899]
[1729405824481,2.4046971,2644.9,2644.5,0.37814]
[1729405824482,0.99057457,2644.6,2644.5,0.37814]
[1729405824684,1.48586186,2644.7,2644.4,2.00143899]
[1729405824892,0.99059886,2644.6,2644.5,0.37816]
[1729405825100,0.99059886,2644.6,2644.5,4.15976]
[1729405826093,1.48586186,2644.7,2644.6,0.37814]
[1729405826391,1.48586186,2644.7,2644.6,4.15974]
[1729405826592,1.9816971,2644.8,2644.6,4.15974]
[1729405826803,1.9816971,2644.8,2644.6,0.37814]
[1729405827087,1.9816971,2644.8,2644.7,0.4184]
[1729405827486,2.90245639,2644.9,2644.5,0.4184]
[1729405827684,3.17824849,2644.7,2644.5,0.4184]
[1729405828288,2.80011849,2644.7,2644.5,0.4184]
[1729405828510,1.48504311,2644.6,2644.5,0.4184]
[1729405828896,3.17824849,2644.7,2644.5,0.4184]
[1729405829099,1.48505805,2644.6,2644.5,0.4184]
[1729405830301,1.86319805,2644.6,2644.5,0.4184]
[1729405830603,1.86298849,2644.6,2644.5,0.4184]
[1729405830798,0.37814,2644.6,2644.5,0.4184]
[1729405831104,1.86279651,2644.6,2644.5,0.4184]
[1729405831398,1.86279443,2644.6,2644.5,0.4184]
[1729405831793,1.48465443,2644.6,2644.5,0.4184]
[1729405832290,1.48465443,2644.6,2644.3,1.2096]
[1729405832291,1.86281443,2644.6,2644.3,1.2096]
[1729405832491,0.98954033,2644.4,2644.3,1.58779]
[1729405832704,0.98954033,2644.4,2644.3,0.4016]
[1729405833200,0.98954033,2644.4,2644.3,0.77979]
[1729405833798,1.89881049,2644.5,2644.3,0.77979]
[1729405834000,1.89881049,2644.5,2644.3,0.4016]
[1729405834304,0.98929063,2644.4,2644.3,0.4016]
[1729405834805,0.98929063,2644.4,2644.3,0.77979]
[1729405837301,0.4145,2644.5,2644.3,0.4016]
[1729405837302,1.40379063,2644.5,2644.3,0.4016]
[1729405837503,1.40379063,2644.5,2644.4,0.37817]
[1729405838616,0.98929063,2644.7,2644.6,0.37814]
[1729405838804,0.98929063,2644.8,2644.7,0.37813]
[1729405839605,0.98929063,2644.8,2644.7,0.77223]
[1729405840104,0.98929063,2644.8,2644.7,4.55303]
[1729405840305,1.48431049,2644.9,2644.7,4.1749]
[1729405840306,0.98929063,2644.9,2644.7,4.1749]
[1729405840611,0.98929063,2644.9,2644.8,0.37811]
[1729405840817,0.98929063,2644.9,2644.8,0.80381]
[1729405841006,0.98929063,2644.9,2644.8,4.58461]
[1729405841613,0.98929063,2644.9,2644.8,0.80381]
[1729405841913,0.98929063,2644.9,2644.8,0.4257]
[1729405841914,1.48431049,2644.9,2644.8,0.4257]
[1729405844409,1.98041849,2645.0,2644.8,0.4257]
[1729405845320,1.98041849,2645.0,2644.8,0.80381]
[1729405845923,0.4031,2644.9,2644.8,0.80381]
[1729405847624,2.38351849,2644.9,2644.8,0.80381]
[1729405849713,0.4031,2644.9,2644.8,0.80381]
[1729405849913,0.4031,2644.9,2644.8,0.4257]
[1729405850513,2.38351849,2644.9,2644.8,0.4257]
[1729405854816,2.38351849,2644.9,2644.8,0.80381]
[1729405855017,2.38351849,2644.9,2644.8,0.4257]
[1729405856417,0.4031,2644.9,2644.8,0.4257]
[1729405856617,2.38437162,2644.9,2644.8,0.4257]
[1729405856913,2.38437142,2644.9,2644.8,0.4257]
[1729405857325,0.4031,2644.9,2644.8,0.4257]
[1729405860619,2.88255639,2644.9,2644.8,0.4257]
[1729405860833,3.66675639,2644.9,2644.8,0.4257]
[1729405861731,3.28865639,2644.9,2644.8,0.4257]
[1729405863021,3.66675639,2644.9,2644.6,1.60844]
[1729405863219,1.98229789,2644.7,2644.6,1.60844]
[1729405863832,1.98229789,2644.7,2644.6,0.4223]
[1729405864129,1.98229789,2644.7,2644.6,1.2303]
[1729405866129,1.98229789,2644.7,2644.6,0.4223]
[1729405868935,2.47945639,2644.7,2644.3,3.2078]
[1729405869231,1.98315853,2644.4,2644.3,4.00249]
[1729405869434,1.98315853,2644.5,2644.4,0.37817]
[1729405872044,1.98315853,2644.5,2644.4,4.15977]
[1729405872228,1.98315853,2644.5,2644.3,0.4165]
[1729405872229,1.98315853,2644.6,2644.3,0.4165]
[1729405872429,1.48721692,2644.4,2644.3,0.79469]
[1729405872726,1.48721692,2644.5,2644.4,0.37817]
[1729405873843,1.98315853,2644.6,2644.5,0.37816]
[1729405879341,2.47945639,2644.7,2644.6,0.37814]
[1729405879547,0.37812,2644.8,2644.6,0.37814]
[1729405880043,2.85702595,2644.7,2644.6,0.37814]
[1729405880242,0.37812,2644.8,2644.6,0.37814]
[1729405883759,0.37813,2644.7,2644.6,0.37814]
[1729405883951,0.78163,2644.7,2644.6,0.37814]
[1729405889262,0.78163,2644.7,2644.5,0.37814]
[1729405890456,0.4035,2644.7,2644.3,1.2245]
[1729405890766,1.98318797,2644.4,2644.3,1.60269]
[1729405894563,2.47898497,2644.5,2644.3,1.60269]
[1729405894967,1.98307244,2644.4,2644.3,1.60269]
[1729405901663,1.98307244,2644.5,2644.3,1.60269]
[1729405903469,1.98307244,2644.4,2644.3,1.60269]
[1729405910480,1.98307244,2644.4,2644.3,2.59285694]
[1729405910773,1.98448995,2644.5,2644.4,0.37817]
[1729405912477,2.47898497,2644.6,2644.4,0.37817]
[1729405912674,1.98468762,2644.5,2644.4,0.37817]
[1729405912875,2.47898497,2644.6,2644.3,2.21466694]
[1729405913083,1.98469455,2644.5,2644.3,2.59284694]
[1729405913272,1.98469455,2644.4,2644.3,2.59284694]
[1729405913774,1.98469455,2644.4,2644.3,3.70751482]
[1729405914367,1.98469455,2644.4,2644.3,3.70758462]
[1729405914971,1.98469455,2644.4,2644.3,2.71741768]
[1729405915175,1.98469455,2644.4,2644.3,3.7091428]
[1729405915975,1.98469455,2644.4,2644.3,3.70913903]
[1729405916569,1.98469455,2644.4,2644.3,2.59440512]
[1729405922579,1.98469455,2644.4,2644.3,3.72974575]
[1729405924177,1.98469455,2644.4,2644.3,3.72975224]
[1729405924685,1.98469455,2644.4,2644.3,4.2233239]
[1729405924883,1.98469455,2644.4,2644.3,2.73802712]
[1729405925078,2.89038497,2644.6,2644.4,0.37817]
[1729405925079,1.98469455,2644.5,2644.4,0.37817]
[1729405925286,1.98469455,2644.5,2644.4,1.3699919]
[1729405925680,2.47898497,2644.6,2644.5,0.37816]
[1729405926380,2.47898497,2644.6,2644.4,1.3699819]
[1729405926685,1.98519367,2644.5,2644.4,1.3699919]
[1729405929177,2.47898497,2644.6,2644.4,1.3699919]
[1729405929382,1.98519055,2644.5,2644.4,1.3699919]
[1729405929580,1.98519055,2644.5,2644.4,1.76384805]
[1729405929881,1.98519055,2644.5,2644.4,1.3699919]
[1729405931782,2.47898497,2644.6,2644.4,0.37817]
[1729405932381,2.47898497,2644.6,2644.5,0.37816]
[1729405932585,2.47898497,2644.6,2644.5,0.77906]
[1729405932781,2.47898497,2644.7,2644.5,0.7985]
[1729405933086,2.47898497,2644.7,2644.6,0.37814]
[1729405933290,2.47898497,2644.7,2644.6,0.78404]
[1729405935388,2.47898497,2644.7,2644.6,0.4059]
[1729405936589,2.47898497,2644.7,2644.6,0.78404]
[1729405936986,3.30748497,2644.8,2644.6,0.78404]
[1729405937296,2.47898497,2644.7,2644.6,0.78404]
[1729405937593,3.30748497,2644.8,2644.7,0.37813]
[1729405938686,0.8285,2644.8,2644.7,0.37813]
[1729405938990,0.8285,2644.8,2644.6,4.6055219]
[1729405939289,1.98437545,2644.7,2644.6,4.9836619]
[1729405939482,1.98437545,2644.7,2644.6,3.99184]
[1729405939688,1.98437545,2644.7,2644.6,4.9836619]
[1729405940586,2.81287545,2644.8,2644.6,4.9836619]
[1729405941091,1.98437545,2644.7,2644.6,4.9836619]
[1729405941290,2.81287545,2644.8,2644.6,4.9836619]
[1729405941791,2.81287545,2644.8,2644.6,1.7758619]
[1729405942089,2.81287545,2644.8,2644.7,0.37813]
[1729405942481,1.98437545,2644.8,2644.7,0.37813]
[1729405944991,1.98437545,2644.8,2644.6,0.78403]
[1729405945189,1.98437545,2644.8,2644.6,1.7758519]
[1729405945387,1.98437545,2644.8,2644.7,0.37813]
[1729405946303,1.98437545,2644.8,2644.6,0.78404]
[1729405946480,1.48760149,2644.7,2644.6,0.78404]
[1729405946687,1.98437545,2644.7,2644.6,0.78404]
[1729405946883,1.98437545,2644.8,2644.6,0.78404]
[1729405947089,1.98437545,2644.7,2644.6,0.78404]
[1729405948091,1.98437545,2644.8,2644.6,0.78404]
[1729405948596,1.98437545,2644.8,2644.7,0.37813]
[1729405949301,1.48744431,2644.8,2644.7,4.15893]
[1729405949495,1.48744431,2644.8,2644.7,5.1507519]
[1729405950696,1.48744431,2644.9,2644.8,0.37811]
[1729405950895,1.48744431,2644.9,2644.8,1.18511]
[1729405951201,1.48744431,2644.9,2644.8,1.99181]
[1729405954195,1.48744431,2644.9,2644.8,1.6137]
[1729405954699,0.99104442,2644.9,2644.8,1.6137]
[1729405955596,2.31334431,2645.0,2644.8,1.6137]
[1729405956198,0.99100258,2644.9,2644.8,1.6137]
[1729405956405,0.9910152,2644.9,2644.8,1.6137]
[1729405956707,0.9910152,2644.9,2644.8,1.99181]
[1729405959006,0.9910152,2644.9,2644.8,1.6137]
[1729405962998,0.9910152,2644.9,2644.8,1.99181]
[1729405963204,0.9910152,2644.9,2644.8,1.6137]
[1729405963605,0.9910152,2644.9,2644.8,1.99181]
[1729405963808,0.9910152,2644.9,2644.8,1.6137]
[1729405965511,0.9910152,2644.9,2644.8,2.39111]
[1729405969515,2.31334431,2645.0,2644.8,2.39111]
[1729405970504,2.31334431,2645.0,2644.8,2.79470141]
[1729405971306,1.48744431,2644.9,2644.8,2.79470141]
[1729405972204,1.48744431,2644.9,2644.8,2.39111]
[1729405975015,1.48744431,2644.9,2644.8,1.616]
[1729405975313,1.48744431,2644.9,2644.8,1.2063]
[1729405975812,1.48744431,2644.9,2644.7,0.9918219]
[1729405976017,3.18836545,2645.0,2644.8,0.62077991]
[1729405976512,2.81027545,2645.0,2644.6,4.6141219]
[1729405976714,1.48702705,2644.8,2644.7,0.806]
[1729405977219,1.89272705,2644.8,2644.7,0.806]
[1729405978728,1.89315392,2644.8,2644.7,0.806]
[1729405979021,0.4057,2644.8,2644.7,0.806]
[1729405979414,0.4057,2644.8,2644.6,1.4063219]
[1729405979613,0.4057,2644.8,2644.7,0.806]
[1729405983618,2.39007545,2644.8,2644.7,0.806]
[1729405985716,2.39007545,2644.8,2644.7,4.0138]
[1729405987126,2.39007545,2644.8,2644.7,0.806]
[1729405987427,2.39007545,2644.8,2644.7,4.0138]
[1729405989721,2.39007545,2644.8,2644.7,0.806]
[1729405990114,2.39007545,2644.8,2644.7,4.0138]
[1729405992523,2.39007545,2644.8,2644.7,0.806]
[1729405992724,2.39007545,2644.8,2644.7,4.0138]